[Event "SVK ECo-C Extraliga 2021-22"]
[Site "Slovakia"]
[Date "2022.05.08"]
[Round "8.1"]
[White "Aczel, Gergely"]
[Black "Vykouk, Jan"]
[Result "0-1"]
[ECO "E81"]
[WhiteElo "2545"]
[BlackElo "2471"]
[Annotator "TA"]
[PlyCount "92"]
[EventDate "2021.10.21"]
[EventType "team-tourn"]
[EventCountry "SVK"]
[SourceTitle "playchess.com"]
[Source "ChessBase"]
[SourceQuality "1"]
[TimeControl "40/5400+30:1800+30"]

{[%evp 20,92,17,0,0,23,16,10,14,27,25,-7,23,13,24,25,25,28,29,21,22,25,18,23,20,16,39,0,0,0,0,0,37,25,29,0,0,0,0,0,19,15,27,14,52,33,33,33,36,36,37,38,45,52,171,45,49,-36,-14,-445,-430,-803,-775,-730,-730,-1224,-1224,-1225,-1223,-1216,-1190,-1062,-972,-845,-824]} 1. d4 {[%emt 0:00:03]} Nf6 {[%emt 0:00:06]} 2. c4 {[%emt 0:00:04]} g6 {[%emt 0:00:05]} 3. f3 {[%emt 0:00:03]} Bg7 {[%emt 0:00:07]} 4. e4 {[%emt 0:00:06]} d6 {[%emt 0:00:12]} 5. Nc3 {[%emt 0:00:05]} O-O {[%emt 0:00:05]} 6. Bg5 {[%emt 0:00:03]} c5 {[%emt 0:00:11]} 7. d5 {[%emt 0:00:08]} e6 {[%emt 0:00:07]} 8. Be2 {[%emt 0:00:34]} exd5 {[%emt 0:00:17]} 9. cxd5 {[%emt 0:00:03]} Re8 {[%emt 0:01:18]} 10. Qd2 {[%emt 0:00:07]} a6 {[%emt 0:00:24]} 11. a4 {[%emt 0:00:05]} Qc7 {[%emt 0:00:21] A65: Modern Benoni: 6 e4.} 12. Bh6 {[%emt 0:02:08]} Bh8 {[%emt 0:02:05] [#]} 13. a5 $146 {[%emt 0:04:05]} ({Predecessor:} 13. h4 Nbd7 14. h5 Ne5 15. hxg6 fxg6 16. g4 c4 17. Be3 b6 18. Nh3 Bd7 19. Nf2 {½-½ (37) Sarfati,J (2250)-Atalik,S Belfort 1983}) 13... b5 {[%emt 0:02:25] The position is equal.} 14. axb6 $1 {[%emt 0:00:06]} Qxb6 {[%emt 0:00:06]} 15. Ra3 {[%emt 0:07:12]} Nbd7 {[%emt 0:02:45]} 16. Nh3 {[%emt 0:00:45]} Rb8 {[%emt 0:00:06]} 17. Nd1 {[%emt 0:09:29]} Qb4 {[%emt 0:07:17]} 18. Nhf2 {[%emt 0:05:13]} Nb6 {[%emt 0:03:12]} 19. Qxb4 {[%emt 0:09:52]} (19. Bxa6 Nfxd5 20. Bxc8 Rbxc8 $15) 19... cxb4 {[%emt 0:00:06]} 20. Ra5 {[%emt 0:01:05]} Nfd7 {[%emt 0:00:06]} 21. Bf4 {[%emt 0:12:43]} (21. Bxa6 Ra8 22. Bxc8 Rxa5 23. Bxd7 Nxd7 $17) 21... Ne5 {[%emt 0:03:30]} 22. Ne3 {[%emt 0:02:05] Against Nec4} Nbd7 {[%emt 0:08:39][%cal Of7f5]} 23. Nd3 {[%emt 0:18:15]} (23. Bxa6 Ra8 24. Bxe5 Nxe5 $17) 23... f5 {[%emt 0:08:18]} 24. Nxe5 {[%emt 0:04:49]} Nxe5 {[%emt 0:01:39]} 25. exf5 {[%emt 0:02:27]} (25. Bxa6 $2 Ra8 26. Bxe5 Bxe5 27. Bxc8 Rxa5 28. Be6+ Kg7 $19) 25... Bxf5 {[%emt 0:11:04]} (25... g5 $5 {[%cal Rg5f4]} 26. Bg3 (26. Bxg5 Nf7 $11) 26... b3 $11) 26. Kd2 $36 {[%emt 0:00:52][%mdl 2048] Against Nd3. Black is under pressure.} ({But not} 26. Nxf5 $2 Nd3+ 27. Kd2 Nxf4 $19) (26. Kf2 $5 {[%cal Re3f5]}) 26... b3 {[%emt 0:09:47]} 27. Bxa6 {[%emt 0:12:19]} Rb4 {[%emt 0:00:21]} 28. Bxe5 {[%emt 0:00:08]} Bxe5 {[%emt 0:00:16]} 29. Nc4 {[%emt 0:02:02]} Bf4+ {[%emt 0:00:26] This bishop pair is nice.} 30. Kc3 {[%emt 0:00:10]} Rbb8 {[%emt 0:00:47]} 31. Rb5 {[%emt 0:01:57]} Bc2 {[%emt 0:02:29]} 32. Rxb8 {[%emt 0:01:17]} (32. g3 {is interesting.} Bh6 33. Re1 Rf8 34. f4) 32... Rxb8 {[%emt 0:00:08]} 33. g3 {[%emt 0:02:05]} Bg5 {[%emt 0:00:03]} 34. Re1 {[%emt 0:00:39]} ({Don't play} 34. Nxd6 Bf6+ 35. Kc4 Bxb2 $17) 34... Bf6+ {[%emt 0:03:42]} 35. Kd2 {[%emt 0:00:01]} Bd4 {[%emt 0:01:19]} 36. Re6 {[%emt 0:01:06]} Bg1 {[%emt 0:01:50]} (36... Rf8 $14) 37. Ke2 {[%emt 0:02:35]} ({Don't do} 37. Rxd6 $6 Bxh2 38. Ne3 Bxg3 $11) ({White has to play} 37. Nxd6 $18 {Black must now prevent Bd3.} Bxh2 38. Ne4) 37... Bf5 $14 {[%emt 0:01:47]} (37... Bxh2 $2 38. Kf2 $18) 38. Rxd6 {[%emt 0:00:54]} (38. Re7 $1 $14) 38... Re8+ $15 {[%emt 0:00:01]} 39. Kf1 $2 {[%emt 0:01:21][%mdl 8192] This costs White the game.} (39. Kd2 $1 $11 {and White stays safe.}) 39... Bc5 $19 {[%emt 0:02:53][%cal Rf5h3] [#] Black is clearly winning.} 40. Re6 {[%emt 0:00:52]} (40. Kg2 $142 Re2+ 41. Kf1) 40... Bh3+ {[%emt 0:00:20]} 41. Ke2 {[%emt 0:30:19]} Bxe6 {[%emt 0:30:05]} 42. Nd6 {[%emt 0:00:00]} Bxd6 {[%emt 0:00:00]} 43. dxe6 {[%emt 0:00:00]} Rxe6+ {[%emt 0:00:00]} 44. Kd3 {[%emt 0:00:00]} Kg7 {[%emt 0:00:00]} 45. Bc4 {[%emt 0:00:00]} Re1 {[%emt 0:00:00]} 46. Bxb3 {[%emt 0:00:00]} Rh1 {[%emt 0:00:00] Weighted Error Value: White=0.61/Black=0.09 (flawless)} 0-1

[Event "SVK ECo-C Extraliga 2021-22"]
[Site "Slovakia"]
[Date "2022.05.09"]
[Round "8.1"]
[White "Mihok, Oliver"]
[Black "Saric, Ivan"]
[Result "1/2-1/2"]
[ECO "B51"]
[WhiteElo "2539"]
[BlackElo "2693"]
[Annotator "TA"]
[PlyCount "104"]
[EventDate "2021.10.21"]
[EventType "team-tourn"]
[EventCountry "SVK"]
[SourceTitle "playchess.com"]
[Source "ChessBase"]
[SourceQuality "1"]
[TimeControl "40/5400+30:1800+30"]

{[%evp 9,104,0,39,30,29,14,19,18,14,17,11,12,12,7,11,9,13,12,19,0,0,15,14,-9,-13,-16,-16,-12,33,6,41,35,60,0,0,-9,-11,-13,-10,-13,-4,-36,-33,-31,-29,-34,-15,-13,6,4,10,13,12,6,3,0,0,0,0,0,-10,-10,0,0,0,0,0,0,0,0,0,0,0,0,0,0,0,0,0,0,0,0,0,0,0,0,0,0,0,0,0,0,0,0,0,0,0]} 1. e4 {[%emt 0:00:06]} c5 {[%emt 0:00:04]} 2. Nf3 {[%emt 0:00:06]} d6 {[%emt 0:00:03]} 3. Bb5+ {[%emt 0:00:08]} Nd7 {[%emt 0:00:21]} 4. a4 {[%emt 0:00:07]} Ngf6 {[%emt 0:00:18]} 5. Nc3 {[%emt 0:00:10]} g6 {[%emt 0:01:21]} 6. a5 {[%emt 0:00:55] B51: Sicilian: Moscow Variation (3 Bb5+) without 3...Bd7.} Bg7 {[%emt 0:00:32]} 7. a6 {[%emt 0:02:17]} O-O {[%emt 0:06:35]} 8. O-O {[%emt 0:03:14]} bxa6 {[%emt 0:07:20]} 9. Bxa6 {[%emt 0:01:29]} Bxa6 {[%emt 0:00:10]} 10. Rxa6 {[%emt 0:00:06]} c4 {[%emt 0:00:51] [#]} 11. Qe2 $146 {[%emt 0:03:14]} ({Predecessor:} 11. Ra4 Nb6 12. Ra2 a5 13. d3 Nfd7 14. d4 e6 15. Bg5 Qc7 16. Qd2 f5 17. Bh6 {1-0 (45) Randazzo,A (2293)-Bodnaruk,A (2414) Chess.com INT 2020}) 11... Qc7 {[%emt 0:01:21]} 12. d4 {[%emt 0:04:06]} cxd3 $1 {[%emt 0:00:12]} 13. cxd3 {[%emt 0:00:05]} Nc5 {[%emt 0:05:33]} 14. Ra3 {[%emt 0:01:49]} Qb7 {[%emt 0:00:21]} 15. Nd2 {[%emt 0:09:03]} Nfd7 {[%emt 0:03:33]} 16. Nc4 {[%emt 0:04:03]} Nb6 {[%emt 0:04:25]} 17. Na5 {[%emt 0:04:13]} Qd7 {[%emt 0:00:07]} 18. Be3 {[%emt 0:01:23]} f5 {[%emt 0:02:27]} 19. f3 {[%emt 0:07:28]} fxe4 {[%emt 0:02:48]} 20. dxe4 {[%emt 0:01:08]} Rfc8 {[%emt 0:00:03]} 21. Rd1 {[%emt 0:10:22]} ({White should try} 21. b4 $1 $14 Nb7 22. Qa2+ Kh8 23. Ne2) 21... Nca4 $11 {[%emt 0:06:51][%cal Rg7c3]} 22. Bd4 {[%emt 0:07:21]} Bxd4+ {[%emt 0:01:10]} 23. Rxd4 {[%emt 0:00:05][%cal Rc3a4]} Nxc3 {[%emt 0:00:38]} 24. bxc3 {[%emt 0:01:34]} Qe6 {[%emt 0:01:17]} 25. Rd3 {[%emt 0:05:36]} Qe5 {[%emt 0:20:42]} 26. Qa2+ {[%emt 0:01:49]} Kg7 {[%emt 0:00:21]} 27. Qf2 {[%emt 0:00:57]} Rab8 {[%emt 0:06:27] [#] Strongly threatening ...Nc4.} (27... Kf7 {keeps more tension.} 28. Qa2+ Kf8 29. Qa1 Rab8) 28. Qd4 {[%emt 0:02:36] Against Nc4. The position is equal.} Qxd4+ {[%emt 0:06:43]} 29. cxd4 {[%emt 0:00:48]} Rc1+ {[%emt 0:00:10]} 30. Kf2 {[%emt 0:00:04]} Rbc8 {[%emt 0:00:51] ...R8c2+ is the strong threat.} 31. Rd2 {[%emt 0:02:48]} d5 {[%emt 0:05:02]} 32. exd5 {[%emt 0:04:22]} Nxd5 {[%emt 0:00:03]} 33. Nb7 {[%emt 0:02:15]} R8c2 {[%emt 0:00:36]} 34. Rxc2 {[%emt 0:05:49]} Rxc2+ {[%emt 0:00:25][%mdl 4096] Endgame KRN-KRN} 35. Kf1 {[%emt 0:00:41]} Nf4 {[%emt 0:01:55]} 36. g3 {[%emt 0:05:35]} Rc1+ {[%emt 0:10:32]} 37. Kf2 {[%emt 0:00:08]} Rc2+ {[%emt 0:00:01]} 38. Kf1 {[%emt 0:00:30]} Ne6 {[%emt 0:01:03]} 39. d5 {[%emt 0:02:03]} Rc7 {[%emt 0:00:51]} 40. dxe6 {[%emt 0:03:14]} Rxb7 {[%emt 0:00:03] KR-KR} 41. f4 {[%emt 0:31:24]} Kf6 {[%emt 0:30:08]} 42. Ra6 {[%emt 0:00:05]} Kf5 {[%emt 0:01:55]} 43. Kg2 {[%emt 0:00:17]} h6 {[%emt 0:00:00]} 44. Kf3 {[%emt 0:00:00]} Rb3+ {[%emt 0:00:00]} 45. Kg2 {[%emt 0:00:00]} Rb2+ {[%emt 0:00:00]} 46. Kh3 {[%emt 0:00:00]} Rb7 {[%emt 0:00:00]} 47. Kg2 {[%emt 0:00:00]} Rb2+ {[%emt 0:00:00]} 48. Kh3 {[%emt 0:00:00]} Rf2 {[%emt 0:00:00]} 49. Rxa7 {[%emt 0:00:00]} Kxe6 {[%emt 0:00:00]} 50. Ra5 {[%emt 0:00:00]} Kf6 {[%emt 0:00:00]} 51. Rb5 {[%emt 0:00:00]} e6 {[%emt 0:00:00]} 52. Ra5 {[%emt 0:00:00]} Rd2 {[%emt 0:00:00] Weighted Error Value: White=0.05 (flawless) /Black=0.05 (flawless)} 1/2-1/2

[Event "SVK ECo-C Extraliga 2021-22"]
[Site "Slovakia"]
[Date "2022.05.08"]
[Round "8.1"]
[White "Krejci, Jan"]
[Black "Plat, Vojtech"]
[Result "0-1"]
[ECO "A41"]
[WhiteElo "2520"]
[BlackElo "2554"]
[Annotator "TA"]
[PlyCount "119"]
[EventDate "2021.10.21"]
[EventType "team-tourn"]
[EventCountry "SVK"]
[SourceTitle "playchess.com"]
[Source "ChessBase"]
[SourceQuality "1"]
[TimeControl "40/5400+30:1800+30"]

{[%evp 13,119,47,29,23,19,7,39,28,50,44,48,55,81,69,63,69,62,64,63,49,46,48,43,23,32,36,70,32,39,27,45,-4,87,11,13,18,16,22,11,0,0,-42,-45,-37,-56,-36,-15,-74,-7,-8,0,0,0,-8,0,0,0,0,0,0,0,-4,-3,-14,-9,-8,0,-6,-5,-5,-8,-43,-52,-55,-67,-205,-204,-874,-854,-740,-307,-307,-307,-307,-307,-307,-306,-307,-303,-285,-284,-253,-252,-252,-244,-237,-162,-200,-160,-366,-316,-12850,-27999,-27999,-27999,-27999,-27999,-27999]} 1. d4 {[%emt 0:00:03]} d6 {[%emt 0:00:09]} 2. c4 {[%emt 0:00:32]} e5 {[%emt 0:00:05]} 3. Nf3 {[%emt 0:00:41]} exd4 {[%emt 0:00:05]} 4. Nxd4 {[%emt 0:00:07]} g6 {[%emt 0:00:26]} 5. Nc3 {[%emt 0:02:07]} Bg7 {[%emt 0:00:07]} 6. g3 {[%emt 0:02:12]} Ne7 {[%emt 0:00:54] 6...Nf6 is more advanced technology.} 7. Bg2 {[%emt 0:00:11]} O-O {[%emt 0:00:26]} 8. h4 {[%emt 0:10:02] A21: English Opening: 1...e5 2 Nc3.} Nbc6 {[%emt 0:03:22]} 9. Nxc6 {[%emt 0:02:10]} bxc6 {[%emt 0:00:10] [#]} 10. Bg5 $146 {[%emt 0:01:52] White is slightly better.} ({Predecessor:} 10. h5 Be6 11. Qa4 Rb8 12. c5 dxc5 13. hxg6 fxg6 14. Qh4 h5 15. O-O Nd5 16. Qxd8 Rfxd8 {0-1 (34) Ree,H (2436)-Rogers,I (2618) Breda 1999}) 10... Be6 {[%emt 0:00:10]} 11. Qd3 {[%emt 0:05:59]} Rb8 {[%emt 0:09:52]} 12. b3 {[%emt 0:00:43]} d5 {[%emt 0:02:10]} 13. cxd5 {[%emt 0:04:36]} cxd5 {[%emt 0:00:47]} 14. Rc1 {[%emt 0:00:21]} c6 {[%emt 0:04:07]} 15. Na4 {[%emt 0:01:26]} h6 {[%emt 0:00:04]} 16. Bf4 {[%emt 0:04:56]} (16. Bxe7 Qxe7 17. Rxc6 Rfc8 18. Rxc8+ Rxc8 $11) 16... Rb4 {[%emt 0:01:09]} 17. Be3 {[%emt 0:03:22]} Re8 {[%emt 0:03:49]} 18. Qd2 {[%emt 0:05:48]} a5 {[%emt 0:00:30]} (18... d4 {is more complex.} 19. Bxh6 Bxh6 20. Qxh6 Bd5) 19. Bc5 {[%emt 0:02:00]} (19. Bxh6 Rd4 20. Qg5 f6 21. Bxg7 fxg5 $17) 19... Rb8 {[%emt 0:02:16]} 20. O-O {[%emt 0:02:01]} (20. Ba7 $5 {[%cal Ra7b8]}) 20... Nf5 {[%emt 0:00:49]} 21. Rfe1 {[%emt 0:05:25]} h5 {[%emt 0:06:49]} 22. Qd3 {[%emt 0:05:37]} (22. e3 $14 {deserves consideration.}) 22... Nd6 {[%emt 0:07:19]} (22... g5 $11 {remains equal.}) 23. Bd4 {[%emt 0:02:01]} (23. Qa6 $1 $16) 23... Bf5 $11 {[%emt 0:00:41]} 24. Qd1 {[%emt 0:00:18]} Bxd4 {[%emt 0:05:14]} 25. Qxd4 {[%emt 0:00:03]} Rb4 {[%emt 0:00:21]} 26. Qc5 {[%emt 0:04:37]} g5 {[%emt 0:00:07]} 27. Qxc6 {[%emt 0:04:56] aiming for Rcd1.} gxh4 {[%emt 0:00:44]} 28. Qxd5 {[%emt 0:01:43]} (28. Bxd5 $2 hxg3 29. fxg3 Rg4 $19) 28... hxg3 {[%emt 0:02:34]} 29. fxg3 {[%emt 0:00:25]} Rg4 {[%emt 0:04:13]} 30. Rc3 {[%emt 0:02:17] [#]} (30. Rf1 $1 $11 Qe7 31. Rc6 Rxg3 32. Rxf5 (32. Qxd6 $2 Rxg2+ 33. Kxg2 Qxe2+ 34. Rf2 Be4+ 35. Kg1 Qe1+ 36. Rf1 Qh4 $19) (32. Rxd6 $2 Be4 $19) 32... Nxf5 33. Qxf5) 30... Be4 {[%emt 0:08:19]} (30... Qf6 $1 $17 {[%cal Og4a4] Hoping for ...Rxa4!} 31. Rf3 (31. Qxa5 $2 h4 $19) 31... Re5) 31. Bxe4 {[%emt 0:02:45]} Nxe4 {[%emt 0:02:42]} 32. Qxd8 {[%emt 0:00:07]} Rxd8 {[%emt 0:00:01]} 33. Rf3 {[%emt 0:00:16]} h4 {[%emt 0:08:48]} 34. Nc3 {[%emt 0:03:45]} Rxg3+ {[%emt 0:06:44]} 35. Rxg3+ {[%emt 0:00:07]} Nxg3 {[%emt 0:00:01][%mdl 4096] Endgame KRN-KRN} 36. Kg2 {[%emt 0:02:49]} Rc8 {[%emt 0:01:26]} 37. Nd5 {[%emt 0:04:50] Ne7+ is the strong threat.} Rc2 {[%emt 0:00:13][%csl LRa2,LRe2]} 38. Kh3 {[%emt 0:00:27]} Nxe2 {[%emt 0:08:03]} 39. Ra1 {[%emt 0:07:19]} Rc5 {[%emt 0:01:26]} 40. Re1 {[%emt 0:05:27] Threatens to win with Ne7+.} Nd4 {[%emt 0:03:03]} 41. Nf6+ {[%emt 0:11:22]} Kg7 {[%emt 0:00:20]} 42. Rf1 {[%emt 0:00:43]} Rc3+ {[%emt 0:02:07]} 43. Kg4 {[%emt 0:00:22]} ({But not} 43. Kxh4 $2 Nf3+ 44. Rxf3 Rxf3 $19) 43... h3 {[%emt 0:04:37]} 44. Nh5+ {[%emt 0:00:24] [#] This costs White the game.} ({Better is} 44. Rf2 $15) 44... Kf8 $1 $19 {[%emt 0:00:41] Strongly threatening ...f5+.} 45. Rf2 {[%emt 0:06:52]} (45. Kf4) 45... f5+ {[%emt 0:04:10]} 46. Kf4 {[%emt 0:00:02]} Ke7 {[%emt 0:04:41]} (46... Kf7 $142 {White must now prevent ...Kg6.} 47. Rd2 Kg6 48. Rxd4 h2 49. Rd6+ Kxh5) 47. Rd2 {[%emt 0:02:45]} Ne6+ {[%emt 0:03:22]} 48. Kxf5 {[%emt 0:00:31]} Rc5+ {[%emt 0:00:05]} 49. Kg4 {[%emt 0:00:49]} Rg5+ {[%emt 0:00:03]} 50. Kxh3 {[%emt 0:01:55]} Rxh5+ {[%emt 0:00:17] KRN-KR} 51. Kg4 {[%emt 0:00:04]} Re5 {[%emt 0:00:19]} 52. Kf3 {[%emt 0:00:32]} Kf6 {[%emt 0:00:30]} 53. Rd7 {[%emt 0:01:19]} Ng5+ {[%emt 0:01:06]} 54. Kf2 {[%emt 0:00:01]} Kf5 {[%emt 0:00:16]} 55. Rd4 {[%emt 0:00:10]} Ne6 {[%emt 0:00:39]} 56. Rc4 {[%emt 0:01:28]} (56. Rh4 $17) 56... Re4 {[%emt 0:01:36]} 57. Rxe4 {[%emt 0:03:13]} (57. Rc3) 57... Kxe4 {[%emt 0:00:01]} 58. Ke2 {[%emt 0:00:01] Black mates.} Kd4 {[%emt 0:00:13]} 59. Kd2 {[%emt 0:00:01]} Nf4 {[%emt 0:02:07]} 60. Kc2 {[%emt 0:00:06] Weighted Error Value: White=0.39/Black=0.16 (very precise)} 0-1

[Event "SVK ECo-C Extraliga 2021-22"]
[Site "Slovakia"]
[Date "2022.05.09"]
[Round "8.1"]
[White "Kriebel, Tadeas"]
[Black "Petenyi Tamas"]
[Result "1-0"]
[ECO "B09"]
[WhiteElo "2516"]
[BlackElo "2431"]
[Annotator "TA"]
[PlyCount "55"]
[EventDate "2021.10.21"]
[EventType "team-tourn"]
[EventCountry "SVK"]
[SourceTitle "playchess.com"]
[Source "ChessBase"]
[SourceQuality "1"]
[TimeControl "40/5400+30:1800+30"]

{[%evp 15,55,55,33,45,69,63,60,54,52,73,56,66,156,171,165,142,246,235,216,175,234,174,173,187,222,162,148,145,225,217,550,565,533,552,557,535,700,695,1252,1235,1180,1171]} 1. e4 {[%emt 0:00:08]} d6 {[%emt 0:01:04]} 2. d4 {[%emt 0:00:05]} Nf6 {[%emt 0:00:05]} 3. Nc3 {[%emt 0:00:07]} g6 {[%emt 0:00:31]} 4. f4 {[%emt 0:00:29]} Bg7 {[%emt 0:01:09]} 5. Nf3 {[%emt 0:00:16]} O-O {[%emt 0:03:02]} 6. Be3 {[%emt 0:00:06]} Nc6 {[%emt 0:07:00]} 7. e5 {[%emt 0:03:41]} Ng4 {[%emt 0:03:29]} 8. Bg1 {[%emt 0:01:04]} dxe5 {[%emt 0:06:15]} 9. dxe5 {[%emt 0:03:33] B09: Pirc Defence: Austrian Attack.} Qxd1+ {[%emt 0:07:40]} 10. Rxd1 {[%emt 0:01:01]} f6 {[%emt 0:06:06][%cal Rf6e5]} 11. Nb5 {[%emt 0:30:48] White is slightly better.} fxe5 {[%emt 0:08:51]} 12. Nxc7 {[%emt 0:00:20]} Rb8 {[%emt 0:01:59] [#]} 13. h3 $146 {[%emt 0:08:35]} ({Predecessor:} 13. Bc4+ Kh8 14. h3 Nh6 15. fxe5 Nxe5 16. Nxe5 Bxe5 17. Bd4 Bxd4 18. Rxd4 Nf5 19. O-O {1-0 (44) Isaksen,B (2245)-Kaspersen,M (2250) Farum 1993}) 13... e4 {[%emt 0:10:04]} (13... Nh6 $1 $14) 14. Ng5 {[%emt 0:21:41]} (14. hxg4 $6 exf3 15. Bc4+ (15. gxf3 Rxf4 16. Bh2 Rxf3 $11) 15... e6 16. Nxe6 Re8 $14) 14... Nh6 {[%emt 0:04:10]} 15. c3 {[%emt 0:00:04]} (15. Nxe4 Rxf4 16. Bc4+ Kh8 $11) 15... e5 {[%emt 0:04:51]} (15... Rxf4 16. Be3 Rf8 17. g4 $16 (17. Nxe4 b5 $14) (17. Bc4+ Kh8 $14)) (15... b5 $16 16. Bc5 (16. Bxb5 Na5 $16) (16. Nxb5 a6 $11) 16... Rb7) 16. Bc4+ $18 {[%emt 0:04:44]} (16. Nxe4 Kh8 $16) 16... Kh8 {[%emt 0:00:10]} 17. Bc5 $36 {[%emt 0:00:16][%mdl 2048] Black is under strong pressure.} ({Resist} 17. Nxe4 $6 b6 $16) 17... Rxf4 {[%emt 0:06:34]} (17... exf4 {was worth a try.} 18. Bxf8 (18. Nxe4 Nf5 $16) 18... Bxf8) 18. Nce6 {[%emt 0:07:15]} Bxe6 {[%emt 0:01:51]} 19. Nxe6 {[%emt 0:00:02]} Rf7 {[%emt 0:06:27]} 20. Nxg7 {[%emt 0:01:23]} Rxg7 {[%emt 0:00:07]} 21. g4 {[%emt 0:07:21] [#] Against Nf5. And now Rf1 would win. White is more active.} Nf7 {[%emt 0:02:38]} (21... b6 $16) 22. Be3 {[%emt 0:00:04] Threatens to win with Rf1. A strong pair of Bishops.} Rd8 $2 {[%emt 0:06:12]} (22... h6 {is more resistant.} 23. h4 Na5) 23. Rf1 {[%emt 0:00:56] White is clearly winning.} Rxd1+ {[%emt 0:02:49]} 24. Kxd1 {[%emt 0:00:05]} Ncd8 {[%emt 0:01:12] [#]} 25. Bg5 $1 {[%emt 0:00:18][%mdl 512] Black must now prevent Bxd8.} h6 {[%emt 0:03:40]} (25... h5 26. Bxd8) 26. Bxd8 {[%emt 0:00:09]} Nd6 {[%emt 0:00:18]} 27. Rf8+ {[%emt 0:00:55]} Kh7 {[%emt 0:00:05]} 28. Be6 {[%emt 0:00:40] Weighted Error Value: White=0.12 (very precise) /Black=0.56} 1-0

[Event "SVK ECo-C Extraliga 2021-22"]
[Site "Slovakia"]
[Date "2022.05.08"]
[Round "8.1"]
[White "Mazur, Stefan"]
[Black "Zwardon, Vojtech"]
[Result "0-1"]
[ECO "C41"]
[WhiteElo "2423"]
[BlackElo "2468"]
[Annotator "TA"]
[PlyCount "70"]
[EventDate "2021.10.21"]
[EventType "team-tourn"]
[EventCountry "SVK"]
[SourceTitle "playchess.com"]
[Source "ChessBase"]
[SourceQuality "1"]
[TimeControl "40/5400+30:1800+30"]

{[%evp 18,70,49,50,62,31,59,64,62,61,94,94,108,44,42,49,45,0,0,0,0,-34,-35,-24,160,-112,-91,-256,-275,-278,-202,-489,-473,-464,-345,-369,-359,-450,-432,-918,-927,-925,-924,-917,-899,-921,-930,-895,-886,-1775,-1670,-1677,-1641,-29992,-29993]} 1. e4 {[%emt 0:04:59]} d6 {[%emt 0:00:01]} 2. d4 {[%emt 0:00:11]} Nf6 {[%emt 0:00:04]} 3. Nc3 {[%emt 0:00:14]} e5 {[%emt 0:00:02]} 4. Nf3 {[%emt 0:01:35]} Nbd7 {[%emt 0:00:12]} 5. Bc4 {[%emt 0:02:47]} Be7 {[%emt 0:00:06]} 6. a4 {[%emt 0:00:07]} O-O {[%emt 0:00:09]} 7. O-O {[%emt 0:00:06]} c6 {[%emt 0:00:02]} 8. h3 {[%emt 0:01:49]} b6 {[%emt 0:02:58] 8...h6 injects fresh life into this line.} 9. Qe2 {[%emt 0:07:00]} a6 {[%emt 0:01:33]} 10. Rd1 {[%emt 0:10:12]} Qc7 {[%emt 0:00:11] C41: Philidor Defence.} 11. Ba2 {[%emt 0:08:30]} Bb7 {[%emt 0:02:11]} 12. Nh4 {[%emt 0:01:14]} exd4 {[%emt 0:02:48] White is slightly better.} 13. Rxd4 {[%emt 0:00:30]} c5 {[%emt 0:21:01]} 14. Rd1 {[%emt 0:11:38] [#]} g6 $146 {[%emt 0:09:07] Prevents Nf5.} ({Predecessor:} 14... Rfe8 15. Nf5 Bf8 16. Qf3 Ne5 17. Qf4 c4 18. Rd4 Ng6 19. Nh6+ Kh8 20. Rxc4 Qe7 {0-1 (41) Kaminski,M (2450)-Pisulinski,J (2370) Polanica Zdroj 1993}) 15. Bh6 {[%emt 0:08:33]} ({Better is} 15. Nf3 $16) 15... Rfe8 $1 $14 {[%emt 0:00:39]} 16. Nf3 {[%emt 0:00:34][%cal Oa2f7]} Bf8 {[%emt 0:03:32]} 17. Bxf7+ {[%emt 0:07:08]} Kxf7 {[%emt 0:00:09]} 18. Qc4+ {[%emt 0:00:43]} d5 $1 {[%emt 0:21:58]} 19. Rxd5 {[%emt 0:30:08][%cal Rd5d7]} Ke7 {[%emt 0:08:03]} 20. Bg5 {[%emt 0:00:17]} h6 $2 {[%emt 0:01:05] [#]} (20... b5 $1 $11 21. Rxd7+ (21. axb5 $2 axb5 22. Qf1 Rxa1 $19) 21... Kxd7 22. axb5 axb5 23. Qf7+ (23. Qxb5+ Bc6 $17) 23... Kc8 24. Rxa8+ Bxa8 25. Qxf6 b4) 21. Bh4 $2 {[%emt 0:01:05] [#]} (21. Nh4 $2 hxg5 22. Nxg6+ Kd8 $19) (21. e5 $1 $16 {is forced if you want to stay better.} hxg5 22. exf6+ Kxf6 23. Rad1 (23. Qg4 Qf4 $16)) 21... b5 $1 $17 {[%emt 0:02:51]} 22. Qd3 {[%emt 0:00:27] This move loses the game for White.} ({Wrong is} 22. axb5 $2 axb5 23. Qf1 (23. Rxd7+ $2 Qxd7 24. Qf1 Rxa1 $19) 23... Rxa1 24. Qxa1 Kf7 $19) (22. Qa2 $17 c4 23. e5 (23. axb5 $2 axb5 24. Qb1 Kf7 $19) (23. Bg3 $2 Qc8 $19)) 22... Kf7 $19 {[%emt 0:00:28][%cal Be7f7,Bf7g7,Bg7f6][%mdl 32]} 23. Bg3 {[%emt 0:00:48]} Qc8 {[%emt 0:01:17] White must now prevent ...c4.} 24. Nh4 $2 {[%emt 0:00:53]} (24. Ne5+ {was necessary.} Nxe5 25. Rxe5) 24... c4 {[%emt 0:02:37]} 25. Qf3 {[%emt 0:00:02]} Bxd5 {[%emt 0:00:29]} 26. Nxd5 {[%emt 0:00:03][%cal Oe4e5]} Rxe4 {[%emt 0:00:30] aiming for ...b4.} 27. Rd1 {[%emt 0:01:19]} Kg7 {[%emt 0:05:35]} 28. Nf4 {[%emt 0:00:44]} (28. Nc3 $142 Re6 29. axb5) 28... Ne5 {[%emt 0:00:33]} 29. Qc3 {[%emt 0:00:15]} b4 {[%emt 0:00:24]} 30. Qd2 {[%emt 0:00:06]} g5 {[%emt 0:01:06][%csl LRf4,LRh4]} 31. Nd5 {[%emt 0:00:03]} gxh4 {[%emt 0:00:38]} 32. Nxf6 {[%emt 0:00:06]} Kxf6 {[%emt 0:00:06]} 33. f3 {[%emt 0:01:12] [#]} Nxf3+ $1 {[%emt 0:01:38]} 34. gxf3 {[%emt 0:00:02] [#]} Qxh3 $1 {[%emt 0:00:06] ( -> ...Bc5+)} 35. Bh2 {[%emt 0:00:30]} (35. Qh2 Qxh2+) 35... Bc5+ {[%emt 0:00:12] Weighted Error Value: White=1.04/Black=0.18 (very precise)} 0-1